bitfinex-derivatives/quotes_BTCF0:USTF0_20210708
["timestamp","ask_amount","ask_price","bid_price","bid_amount"]
[1625730039593,3.24245381,32763.0,32755.0,2.86625189]
[1625730039594,4.94716383,32763.0,32755.0,2.86625189]
[1625730039701,5.1525,32756.0,32752.0,3.22453337]
[1625730039801,5.3992,32756.0,32751.0,0.004985]
[1625730039941,5.3992,32756.0,32716.0,2.50928739]
[1625730039942,3.42342721,32753.0,32716.0,2.50928739]
[1625730040126,0.96230176,32717.0,32710.0,0.965]
[1625730040391,1.30849176,32717.0,32708.0,2.5101606]
[1625730041242,1.30849176,32717.0,32695.0,0.0002]
[1625730041291,1.30849176,32717.0,32674.0,4.6646101]
[1625730041292,5.0637,32704.0,32678.0,0.63725491]
[1625730041323,5.33532,32704.0,32682.0,0.1678]
[1625730041369,5.33532,32704.0,32696.0,0.003601]
[1625730041431,5.33532,32704.0,32683.0,0.01260585]
[1625730041783,0.17269338,32697.0,32683.0,0.01260585]
[1625730041801,0.49043338,32697.0,32678.0,0.57515134]
[1625730041904,0.49043338,32697.0,32678.0,0.52106156]
[1625730042058,0.49043338,32697.0,32678.0,0.46976156]
[1625730042192,0.96230176,32679.0,32664.0,0.5]
[1625730042351,1.21208176,32679.0,32664.0,0.5]
[1625730043240,1.21208176,32679.0,32664.0,0.4471]
[1625730043429,1.21208176,32679.0,32640.0,0.06746453]
[1625730043540,5.238,32676.0,32633.0,0.01]
[1625730043989,5.238,32676.0,32633.0,0.0415]
[1625730044141,0.24057544,32640.0,32633.0,0.28207544]
[1625730044299,0.49872544,32640.0,32634.0,0.01223189]
[1625730044598,0.49872544,32640.0,32633.0,0.01]
[1625730045063,0.49872544,32640.0,32639.0,0.1]
[1625730045646,0.49872544,32640.0,32591.0,0.0674436]
[1625730046105,0.49872544,32640.0,32596.0,0.2929]
[1625730046240,0.25815,32640.0,32601.0,0.04555]
[1625730046393,0.25815,32640.0,32628.0,0.001]
[1625730046544,0.0922,32639.0,32628.0,0.001]
[1625730046697,0.28965,32640.0,32623.0,0.002]
[1625730047335,3.7317,32592.0,32555.0,0.9436]
[1625730047455,3.7317,32592.0,32483.0,6.5883]
[1625730047456,3.99208,32592.0,32511.0,0.9561]
[1625730047594,3.99208,32592.0,32556.0,0.01171807]
[1625730047752,3.99208,32592.0,32571.0,0.2456]
[1625730047923,3.99208,32592.0,32512.0,0.99360343]
[1625730048065,3.99208,32592.0,32534.0,0.2458]
[1625730048209,0.24057544,32535.0,32526.0,0.24057544]
[1625730048524,0.24057544,32535.0,32531.0,0.2458]
[1625730048646,5.219,32554.0,32534.0,0.04555]
[1625730048946,1.4838,32867.0,32534.0,0.04555]
[1625730049115,0.31515,32640.0,32534.0,0.04555]
[1625730049281,0.31615,32640.0,32548.0,0.04555]
[1625730049420,0.057,32612.0,32548.0,0.04555]
[1625730049730,0.08588721,32601.0,32540.0,3.308254]
[1625730049997,0.08588721,32601.0,32549.0,0.457291]
[1625730050161,0.24057544,32579.0,32577.0,0.24057544]
[1625730050621,0.24057544,32582.0,32577.0,0.24057544]
[1625730050773,0.24057544,32585.0,32577.0,0.24057544]
[1625730051395,0.24057544,32585.0,32584.0,0.1]
[1625730051815,0.16198419,32605.0,32584.0,0.1]
[1625730051992,0.16198419,32605.0,32584.0,0.32117]
[1625730052317,0.9061393,32607.0,32601.0,0.48115088]
[1625730052485,0.22327847,32615.0,32601.0,0.45057088]
[1625730052717,0.59476506,32617.0,32601.0,0.45057088]
[1625730052718,0.9993,32668.0,32602.0,0.458885]
[1625730052888,0.9993,32668.0,32614.0,0.1]
[1625730053002,0.9993,32668.0,32614.0,0.4295]
[1625730053302,0.004,32655.0,32614.0,0.3295]
[1625730053610,0.52295147,32628.0,32601.0,0.45057088]
[1625730053752,0.59729627,32630.0,32614.0,0.0315]
[1625730053901,8.3761,32759.0,32614.0,0.34331]
[1625730054052,0.07492168,32636.0,32601.0,0.45057088]
[1625730054203,0.24057544,32632.0,32631.0,0.24057544]
[1625730054352,0.24057544,32632.0,32631.0,0.58235544]
[1625730054802,2.39270825,32669.0,32631.0,0.58235544]
[1625730055555,2.39270825,32669.0,32631.0,0.61385544]
[1625730055719,2.39270825,32669.0,32627.0,0.001]
[1625730055884,0.2951,32661.0,32566.0,0.9187]
[1625730056002,0.21254,32654.0,32566.0,0.9187]
[1625730056265,0.30161,32646.0,32566.0,0.9187]
[1625730056318,0.72172632,32602.0,32591.0,0.24057544]
[1625730056766,0.72172632,32602.0,32585.0,0.24057544]
[1625730058254,0.72172632,32602.0,32598.0,0.24057544]
[1625730058422,0.72172632,32602.0,32585.0,0.24057544]
[1625730059455,0.16189278,32623.0,32593.0,0.00482456]
[1625730059620,0.16189278,32623.0,32593.0,0.29449456]
[1625730059756,0.16189278,32623.0,32594.0,0.462838]
[1625730059942,0.16189278,32623.0,32622.0,0.1]
[1625730060067,0.16189278,32623.0,32622.0,0.39571]
[1625730060245,0.16189278,32623.0,32622.0,1.11743632]
[1625730060687,9.278e-05,32623.0,32622.0,0.39571]
[1625730060858,0.001,32628.0,32622.0,0.39571]
[1625730061116,0.001,32628.0,32622.0,0.29571]
[1625730061262,0.001,32628.0,32622.0,0.32721]
[1625730061427,0.001,32628.0,32627.0,0.1]
[1625730061873,0.001,32628.0,32622.0,0.31859]
[1625730062310,0.96230176,32623.0,32622.0,0.31859]
[1625730062462,0.96230176,32623.0,32605.0,0.24057544]
[1625730062610,0.96230176,32623.0,32529.0,0.057]
[1625730062760,0.96230176,32623.0,32504.0,0.057]
[1625730062911,0.96230176,32623.0,32513.0,0.0915]
[1625730063064,0.96230176,32623.0,32560.0,0.2456]
[1625730063210,0.96230176,32623.0,32562.0,0.18546745]
[1625730063360,0.96230176,32623.0,32567.0,0.462071]
[1625730063511,0.96230176,32623.0,32577.0,0.18546745]
[1625730063662,0.001,32628.0,32577.0,0.46588745]
[1625730063854,0.001,32628.0,32591.0,0.18546745]
[1625730063961,0.001,32628.0,32591.0,0.50867745]
[1625730064266,0.24057544,32617.0,32609.0,0.24057544]
[1625730064560,0.24057544,32617.0,32616.0,0.1]
[1625730065012,0.24057544,32617.0,32591.0,0.0315]
[1625730065311,0.24057544,32617.0,32616.0,0.1]
[1625730065463,0.24057544,32617.0,32616.0,0.37286]
[1625730065613,0.24057544,32623.0,32616.0,0.37286]
[1625730065913,0.001,32628.0,32616.0,0.37286]
[1625730066068,0.001,32628.0,32616.0,0.27286]
[1625730066367,0.24057544,32621.0,32620.0,0.24057544]
[1625730066963,0.24057544,32621.0,32616.0,0.0315]
[1625730067132,0.55501544,32621.0,32525.0,0.057]
[1625730067263,0.55501544,32621.0,32568.0,0.43606745]
[1625730067867,0.55501544,32621.0,32569.0,0.461016]
[1625730068017,0.55501544,32621.0,32577.0,0.2456]
[1625730068182,0.55501544,32621.0,32577.0,0.53261]
[1625730068320,0.24057544,32612.0,32611.0,0.24057544]
[1625730068499,0.24057544,32612.0,32601.0,0.24057544]
[1625730069230,0.24057544,32612.0,32611.0,0.1]
[1625730069595,0.24057544,32612.0,32611.0,0.39638]
[1625730069746,0.24057544,32621.0,32611.0,0.39638]
[1625730069900,0.001,32623.0,32611.0,0.29638]
[1625730070195,0.001,32623.0,32601.0,0.24057544]
[1625730070345,0.001,32623.0,32615.0,0.24057544]
[1625730070346,0.24057544,32616.0,32615.0,0.24057544]
[1625730070644,0.24057544,32616.0,32611.0,0.0315]
[1625730070794,0.24057544,32616.0,32601.0,0.24057544]
[1625730070795,0.24057544,32616.0,32556.0,0.5]
[1625730070945,5.5054,32603.0,32572.0,0.2456]
[1625730071332,5.78653,32603.0,32502.0,0.24613]
[1625730071387,5.78653,32603.0,32529.0,0.0927]
[1625730071756,0.15342626,32589.0,32565.0,0.2456]
[1625730071788,0.39505626,32589.0,32565.0,0.2456]
[1625730072001,0.39505626,32589.0,32566.0,0.55705083]
[1625730072146,0.39505626,32589.0,32567.0,0.00903822]
[1625730072297,0.96230176,32568.0,32567.0,0.01265351]
[1625730072446,1.22939176,32568.0,32567.0,0.01265351]
[1625730072597,1.22939176,32568.0,32566.0,0.01265277]
[1625730072898,1.22939176,32568.0,32567.0,0.01265315]
[1625730073197,0.15342626,32589.0,32567.0,0.01265315]
[1625730073497,0.15342626,32589.0,32566.0,0.01265409]
[1625730073798,0.44090626,32589.0,32568.0,0.01265344]
[1625730074102,0.44090626,32589.0,32567.0,0.01265299]
[1625730074402,0.24057544,32568.0,32566.0,0.24057544]
[1625730074566,0.24057544,32574.0,32566.0,0.24057544]
[1625730074701,0.15342626,32589.0,32567.0,0.01265264]
[1625730074852,0.16202627,32596.0,32567.0,0.24389264]
[1625730075001,0.15336031,32603.0,32567.0,0.70170964]
[1625730075150,0.15336031,32603.0,32567.0,0.689057]
[1625730075302,0.15336031,32603.0,32568.0,0.03071983]
[1625730075752,0.15336031,32603.0,32568.0,0.01264934]
[1625730076052,0.15336031,32603.0,32569.0,0.00361486]
[1625730076353,0.96230176,32570.0,32568.0,0.00361514]
[1625730076503,1.27708176,32570.0,32568.0,0.00361514]
[1625730077179,1.27708176,32570.0,32567.0,0.00361554]
[1625730077328,1.27708176,32570.0,32530.0,0.0451891]
[1625730077481,1.27708176,32570.0,32541.0,0.18546745]
[1625730078093,1.27708176,32570.0,32542.0,0.01265593]
[1625730078389,0.24057544,32552.0,32551.0,0.24057544]
[1625730078539,0.52907544,32552.0,32542.0,0.01265593]
[1625730078707,0.52907544,32552.0,32542.0,0.03511598]
[1625730078886,0.52907544,32552.0,32551.0,0.0036169]
[1625730079014,0.52907544,32552.0,32510.0,0.02712674]
[1625730079015,0.1,32543.0,32510.0,0.02712674]
[1625730079327,0.32349,32543.0,32498.0,0.01808665]
[1625730079373,0.32349,32543.0,32511.0,0.00361788]
[1625730079501,0.22349,32543.0,32511.0,0.01266257]
[1625730080506,0.22349,32543.0,32496.0,0.246]
[1625730080628,0.22349,32543.0,32512.0,0.00361851]
[1625730080688,0.22349,32543.0,32512.0,0.01266478]
[1625730080728,0.22349,32543.0,32510.0,0.246]
[1625730080869,0.22349,32543.0,32513.0,0.00361969]
[1625730080932,0.15369391,32533.0,32513.0,0.00361969]
[1625730080975,0.38913391,32533.0,32511.0,0.00362055]
[1625730082182,0.38913391,32533.0,32514.0,0.00362062]
[1625730082209,0.38913391,32533.0,32475.0,1.81092759]
[1625730082247,0.15380441,32509.0,32475.0,1.81092759]
[1625730082285,0.46528441,32509.0,32475.0,1.81092759]
[1625730082371,0.5,32508.0,32475.0,1.77932759]
[1625730082427,0.15390393,32488.0,32475.0,1.77932759]
[1625730082445,0.48115088,32476.0,32475.0,1.77932759]
[1625730082685,0.80140088,32476.0,32475.0,1.77932759]
[1625730083113,0.80140088,32476.0,32403.0,0.0914]
[1625730083263,0.80140088,32476.0,32429.0,0.18546745]
[1625730083411,0.80140088,32476.0,32424.0,0.18546745]
[1625730083862,0.80140088,32476.0,32400.0,5.259]
[1625730084312,0.80140088,32476.0,32475.0,0.2464]
[1625730084466,0.56082544,32476.0,32475.0,0.4932]
[1625730085291,0.24057544,32476.0,32475.0,0.4432]
[1625730085590,0.24057544,32476.0,32475.0,0.5432]
[1625730085741,0.32488936,32512.0,32475.0,0.5432]
[1625730085890,0.32488936,32512.0,32475.0,0.79011]
[1625730086236,0.32488936,32512.0,32475.0,0.44331]
[1625730086358,0.24057544,32501.0,32499.0,0.24057544]
[1625730086643,0.24057544,32504.0,32493.0,0.24057544]
[1625730086958,0.24057544,32504.0,32475.0,0.0315]
[1625730087093,0.52746544,32504.0,32475.0,0.0315]
[1625730087858,0.24057544,32504.0,32475.0,0.0315]
[1625730088013,0.31623488,32512.0,32476.0,0.46123]
[1625730088145,0.16232291,32537.0,32476.0,0.70435]
[1625730088293,0.002,32481.0,32476.0,0.70435]
[1625730088445,0.002,32481.0,32480.0,0.96230176]
[1625730088595,0.003,32486.0,32480.0,0.96230176]
[1625730088744,0.4490412,32565.0,32484.0,0.18546745]
[1625730088898,0.1858312,32565.0,32484.0,0.49372745]
[1625730089049,0.1858312,32565.0,32498.0,0.18546745]
[1625730089199,0.1858312,32565.0,32498.0,0.53718745]
[1625730089497,0.2712,32543.0,32499.0,0.463376]
[1625730089810,0.5172,32543.0,32536.0,0.1]
[1625730090247,0.5172,32543.0,32518.0,0.2398]
[1625730090248,0.246,32543.0,32528.0,0.34842]
[1625730090423,0.24057544,32532.0,32531.0,0.24057544]
[1625730090568,0.24057544,32532.0,32531.0,0.15138594]
[1625730090698,0.24057544,32532.0,32531.0,0.25138594]
[1625730091524,0.24057544,32532.0,32420.0,0.001]
[1625730091675,0.24057544,32532.0,32442.0,0.2461207]
[1625730091827,0.2712,32522.0,32462.0,0.5]
[1625730092124,0.2712,32522.0,32499.0,0.463838]
[1625730092426,0.2712,32522.0,32521.0,0.48115088]
[1625730092575,0.2712,32522.0,32521.0,0.72372088]
[1625730093188,0.1763,32522.0,32521.0,0.24257]
[1625730093472,0.1763,32522.0,32493.0,0.32091]
[1625730093626,0.43171,32522.0,32478.0,0.2462]
[1625730094079,0.153758,32519.0,32478.0,0.2462]
[1625730094224,0.15383282,32503.0,32478.0,0.2462]
[1625730094377,0.002,32482.0,32420.0,0.001]
[1625730094527,0.24057544,32480.0,32468.0,0.24057544]
[1625730095050,0.24057544,32480.0,32469.0,0.464568]
[1625730095349,0.24057544,32480.0,32468.0,0.27207544]
[1625730096102,0.002,32482.0,32468.0,0.27207544]
[1625730096265,0.003,32487.0,32468.0,0.27207544]
[1625730096415,0.003,32487.0,32486.0,0.96230176]
[1625730096565,0.003,32487.0,32486.0,1.06230176]
[1625730096859,0.003,32487.0,32486.0,0.1]
[1625730097307,0.24057544,32498.0,32486.0,0.1]
[1625730097758,0.24057544,32498.0,32478.0,0.33339]
[1625730098208,0.24057544,32498.0,32497.0,0.1]
[1625730098369,0.24057544,32498.0,32497.0,0.43715]
[1625730099267,0.24057544,32498.0,32497.0,0.27448033]
[1625730099409,0.24057544,32498.0,32471.0,0.27273]
[1625730099559,0.54588544,32498.0,32413.0,0.5]
[1625730099708,0.54588544,32498.0,32391.0,0.057]
[1625730100308,0.54588544,32498.0,32465.0,0.935]
[1625730100459,0.24057544,32481.0,32480.0,0.24057544]
[1625730100910,0.24057544,32484.0,32480.0,0.24057544]
[1625730101058,0.24057544,32484.0,32480.0,0.53235544]
[1625730101229,0.24057544,32484.0,32480.0,0.29178]
[1625730102183,0.3944326,32498.0,32480.0,0.29178]
[1625730102484,0.15385716,32498.0,32497.0,0.48115088]
[1625730102640,0.15385716,32498.0,32480.0,0.32328]
[1625730102811,0.15385716,32498.0,32465.0,0.935]
[1625730103688,0.15385716,32498.0,32465.0,0.9665]
[1625730104438,0.24057544,32473.0,32472.0,0.24057544]
[1625730104586,0.24057544,32473.0,32472.0,0.53917544]
[1625730105038,0.1538619,32497.0,32472.0,0.53917544]
[1625730105191,0.1538619,32497.0,32472.0,0.57067544]
[1625730105491,0.1538619,32497.0,32472.0,0.09319938]
[1625730105666,0.1538619,32497.0,32469.0,0.24057544]
[1625730105836,0.4613819,32497.0,32465.0,0.935]
[1625730105952,0.4613819,32497.0,32470.0,0.00362453]
[1625730106253,0.4613819,32497.0,32466.0,0.01268478]
[1625730106389,0.001,32474.0,32467.0,0.001]
[1625730106540,0.24157544,32474.0,32473.0,0.24057544]
[1625730106764,0.24157544,32474.0,32473.0,0.24419976]
[1625730107442,0.24057544,32477.0,32473.0,0.24419976]
[1625730107747,0.002,32479.0,32473.0,0.24419976]
[1625730107894,0.002,32479.0,32474.0,0.00362417]
[1625730108269,0.002,32479.0,32474.0,0.29871417]
[1625730108570,0.002,32479.0,32478.0,0.34057544]
[1625730108721,0.002,32479.0,32467.0,0.001]
[1625730108879,0.35585,32479.0,32467.0,0.001]
[1625730109107,0.35585,32479.0,32468.0,0.00362504]
[1625730109396,0.001,32474.0,32468.0,0.00362504]
[1625730109550,0.001,32474.0,32468.0,0.03512504]
[1625730109847,0.001,32474.0,32469.0,0.01268584]
[1625730109997,0.001,32474.0,32469.0,0.27129584]
[1625730110375,0.001,32474.0,32470.0,0.0126851]
[1625730110523,0.001,32474.0,32473.0,0.72172632]
[1625730110992,0.001,32474.0,32473.0,0.7344105]
[1625730111575,0.001,32474.0,32473.0,0.7659105]
[1625730112626,0.057,32534.0,32473.0,1.02638801]
[1625730112775,0.07124845,32535.0,32473.0,1.48544101]
[1625730112932,0.16232291,32537.0,32473.0,1.48544101]
[1625730113228,0.16232291,32537.0,32493.0,0.1]
[1625730113376,0.16232291,32537.0,32492.0,0.22098]
[1625730113679,0.16232291,32537.0,32493.0,0.00362301]
[1625730113975,0.16232291,32537.0,32473.0,0.96408632]
[1625730114126,0.46128716,32498.0,32473.0,0.72172632]
[1625730114369,0.46128716,32498.0,32474.0,0.00362417]
[1625730114502,0.24057544,32489.0,32488.0,0.24057544]
[1625730114654,0.45593544,32489.0,32478.0,0.24057544]
[1625730114802,0.45593544,32489.0,32318.0,6.20111082]
[1625730115103,0.45593544,32489.0,32468.0,0.01268711]
[1625730115405,0.45593544,32489.0,32474.0,0.004]
[1625730115855,0.45593544,32489.0,32475.0,0.00362506]
[1625730116214,0.24057544,32489.0,32475.0,0.35593506]
[1625730116458,0.24057544,32489.0,32476.0,0.00362485]
[1625730116635,0.24057544,32492.0,32488.0,0.24057544]
[1625730116787,0.24057544,32492.0,32488.0,0.49076544]
[1625730116923,0.24057544,32492.0,32491.0,0.1]
[1625730118116,0.24057544,32492.0,32440.0,4.5144]
[1625730118210,0.56813544,32492.0,32440.0,4.5144]
[1625730118364,0.73068073,32492.0,32489.0,0.001]
[1625730118496,0.48115088,32490.0,32489.0,0.001]
[1625730119085,0.48115088,32490.0,32401.0,0.057]
[1625730119272,0.48115088,32490.0,32334.0,5.9033018]
[1625730119385,0.48115088,32490.0,32329.0,5.90402499]
[1625730119535,0.48115088,32490.0,32466.0,0.00362664]
[1625730119684,0.48115088,32490.0,32465.0,0.02152664]
[1625730119835,0.48115088,32490.0,32388.0,0.51193227]
[1625730119985,0.48115088,32490.0,32437.0,0.01813452]
[1625730120529,0.96230176,32438.0,32426.0,0.01269682]
[1625730120672,1.31344176,32438.0,32409.0,0.24057544]
[1625730120819,1.31344176,32438.0,32427.0,0.00907167]
[1625730121021,1.31344176,32438.0,32427.0,0.00362867]
[1625730121165,1.31344176,32438.0,32426.0,0.29602882]
[1625730121262,4.1902,32436.0,32406.0,0.01814335]
[1625730121494,4.1902,32436.0,32359.0,0.9069]
[1625730121724,4.1902,32436.0,32389.0,0.02387342]
[1625730121992,4.1902,32436.0,32390.0,0.01117139]
[1625730122029,4.1902,32436.0,32360.0,0.12445437]
[1625730122175,4.1902,32436.0,32426.0,0.2478]
[1625730122463,4.1902,32436.0,32391.0,0.01270745]
[1625730122614,4.1902,32436.0,32427.0,0.00363093]
[1625730122763,0.24416907,32418.0,32398.0,0.24057544]
[1625730122913,0.23589,32418.0,32398.0,0.24057544]
[1625730123063,0.23589,32418.0,32399.0,0.00907865]
[1625730123215,0.23589,32418.0,32399.0,0.01271011]
[1625730123965,0.23589,32418.0,32417.0,0.1]
[1625730124266,0.23589,32418.0,32417.0,0.11270949]
[1625730124569,1.19819176,32418.0,32417.0,0.11270949]
[1625730124867,1.19819176,32418.0,32417.0,0.01270949]
[1625730125167,1.19819176,32418.0,32417.0,0.00363128]
[1625730125610,1.19819176,32418.0,32417.0,0.0090782]
[1625730125840,2.15954076,32418.0,32395.0,0.01271154]
[1625730126096,1.72969176,32418.0,32356.0,0.027239]
[1625730126226,1.72969176,32418.0,32316.0,0.0751657]
[1625730126451,1.72969176,32418.0,32357.0,0.0036336]
[1625730126603,0.15428372,32408.0,32357.0,0.0036336]
[1625730126701,0.48115088,32358.0,32355.0,0.24057544]
[1625730126895,0.81148088,32358.0,32355.0,0.24057544]
[1625730127154,0.81148088,32358.0,32293.0,0.02726274]
[1625730127721,0.81148088,32358.0,32291.0,0.01817743]
[1625730127722,0.81148088,32358.0,32332.0,0.01490275]
[1625730128032,0.81148088,32358.0,32357.0,0.1]
[1625730129900,0.33033,32358.0,32357.0,0.1]
[1625730130575,1.05205632,32358.0,32357.0,0.1]
[1625730130740,1.05205632,32358.0,32328.0,0.24057544]
[1625730132604,0.24057544,32341.0,32340.0,0.24057544]
[1625730132979,0.33033,32358.0,32340.0,0.24057544]
[1625730133129,4.9293,32372.0,32340.0,0.24057544]
[1625730133464,0.48355286,32397.0,32340.0,0.48978544]
[1625730133682,0.48355286,32397.0,32341.0,0.464609]
[1625730133972,0.06957864,32412.0,32342.0,0.01123964]
[1625730134286,0.0936,32467.0,32342.0,0.01123964]
[1625730134426,0.057,32426.0,32343.0,0.457077]
[1625730134586,0.24057544,32387.0,32383.0,0.24057544]
[1625730134743,0.24057544,32387.0,32383.0,0.53286544]
[1625730135070,0.17411125,32431.0,32383.0,0.53286544]
[1625730135365,0.66744042,32407.0,32383.0,0.53286544]
[1625730135487,0.66744042,32407.0,32383.0,0.29229]
[1625730136391,0.001,32388.0,32383.0,0.29229]
[1625730136678,0.001,32388.0,32387.0,0.72172632]
[1625730136811,0.4942,32388.0,32387.0,0.72172632]
[1625730137333,0.0001,32388.0,32387.0,0.72172632]
[1625730137519,0.002,32393.0,32387.0,0.72172632]
[1625730137802,0.002,32393.0,32387.0,0.75322632]
[1625730138142,0.002,32393.0,32388.0,0.460048]
[1625730138244,0.003,32398.0,32388.0,0.460048]
[1625730138384,0.16280228,32441.0,32388.0,0.460048]
[1625730138684,0.24057544,32428.0,32426.0,0.24057544]
[1625730138837,0.24057544,32428.0,32426.0,0.49751544]
[1625730139284,0.16266581,32468.0,32427.0,0.1]
[1625730139434,0.49594022,32458.0,32426.0,0.23433479]
[1625730139829,0.49684253,32463.0,32426.0,0.26583479]
[1625730140023,0.07650562,32464.0,32426.0,0.26583479]
[1625730140109,0.21311471,32464.0,32426.0,0.26583479]
[1625730140560,0.49748913,32467.0,32426.0,0.26583479]
[1625730140709,0.24057544,32445.0,32426.0,0.23433479]
[1625730140860,0.24057544,32445.0,32379.0,0.001]
[1625730141010,0.56371544,32445.0,32379.0,0.001]
[1625730141762,0.56371544,32445.0,32389.0,0.9697]
[1625730142061,0.70483462,32445.0,32389.0,0.9697]
[1625730142210,0.7754647,32445.0,32389.0,0.9697]
[1625730142360,0.002,32394.0,32389.0,0.9697]
[1625730142694,0.24257544,32394.0,32393.0,0.48115088]
[1625730142849,0.004,32404.0,32393.0,0.70926088]
[1625730143291,0.004,32404.0,32403.0,0.1]
[1625730143426,0.004,32404.0,32403.0,0.42089]
[1625730144635,0.004,32404.0,32403.0,1.14261632]
[1625730144794,0.0038,32409.0,32403.0,1.14261632]
[1625730145072,0.0038,32409.0,32403.0,1.04261632]
[1625730145371,0.004,32405.0,32403.0,1.07411632]
[1625730145816,0.004,32405.0,32404.0,0.1]
[1625730146418,0.004,32405.0,32404.0,0.596631]
[1625730146642,0.004,32405.0,32404.0,0.83720644]
[1625730147993,0.20957544,32440.0,32404.0,0.83720644]
[1625730148293,0.003,32418.0,32404.0,1.11492644]
[1625730148443,0.003,32418.0,32405.0,0.5]
[1625730148593,0.003,32418.0,32404.0,1.01492644]
[1625730148744,0.24806,32481.0,32417.0,0.96230176]
[1625730148894,1.41364159,32471.0,32417.0,1.24082176]
[1625730149346,1.41364159,32471.0,32458.0,0.1]
[1625730149501,0.85188824,32471.0,32425.0,0.33367]
[1625730149947,1.27756518,32477.0,32425.0,0.33367]
[1625730150247,0.85195444,32471.0,32425.0,0.33367]
[1625730150395,0.15405555,32456.0,32425.0,0.33367]
[1625730150696,0.24057544,32439.0,32438.0,0.24057544]
[1625730151147,0.14508259,32433.0,32432.0,0.24057544]
[1625730151447,0.14508259,32433.0,32425.0,0.0315]
[1625730151599,0.24057544,32429.0,32425.0,0.0315]
[1625730151749,0.14508259,32433.0,32425.0,0.0315]
[1625730151897,0.16269084,32463.0,32425.0,0.31905]
[1625730152648,0.16269084,32463.0,32458.0,0.1]
[1625730153100,0.16269084,32463.0,32420.0,0.24057544]
[1625730153249,5.69392,32459.0,32420.0,0.24057544]
[1625730154378,5.4557,32459.0,32420.0,0.27207544]
[1625730154676,0.24057544,32439.0,32438.0,0.24057544]
[1625730154825,0.24057544,32439.0,32438.0,0.50420544]
[1625730155425,0.24057544,32439.0,32438.0,0.60420544]
[1625730156327,0.24057544,32446.0,32438.0,0.60420544]
[1625730156496,0.16269084,32463.0,32438.0,0.60420544]
[1625730156816,0.85374712,32468.0,32462.0,0.96230176]
[1625730156993,0.85374712,32468.0,32462.0,1.23390176]
[1625730157077,0.15395506,32478.0,32462.0,1.23390176]
[1625730157378,0.001,32465.0,32462.0,1.23390176]
[1625730157677,0.001,32465.0,32462.0,0.32651185]
[1625730157828,0.001,32465.0,32464.0,0.1]
[1625730158352,0.001,32465.0,32453.0,0.002]
[1625730158503,0.001,32465.0,32464.0,0.26506]
[1625730158658,0.001,32465.0,32464.0,0.98678632]
[1625730159271,0.001,32465.0,32464.0,0.26506]
[1625730159460,0.001,32465.0,32453.0,0.002]
[1625730159597,0.34582,32465.0,32453.0,0.002]
[1625730160152,0.34582,32465.0,32448.0,0.003]
[1625730160304,0.34582,32465.0,32438.0,0.005]
[1625730160455,0.34582,32465.0,32360.0,0.0924]
[1625730160604,0.34582,32465.0,32399.0,0.01101048]
[1625730160753,0.24057544,32419.0,32418.0,0.24057544]
[1625730160904,0.22937,32419.0,32418.0,0.24057544]
[1625730161217,0.22937,32419.0,32418.0,0.24420483]
[1625730161504,0.22937,32419.0,32418.0,0.27570483]
[1625730161953,0.34828,32438.0,32418.0,0.27570483]
[1625730162404,0.34828,32438.0,32419.0,0.00362961]
[1625730162705,0.24057544,32433.0,32432.0,0.24057544]
[1625730163229,0.24057544,32436.0,32432.0,0.24057544]
[1625730163532,0.001,32463.0,32432.0,0.47013544]
[1625730163831,0.001,32463.0,32456.0,0.1]
[1625730163981,0.001,32463.0,32456.0,0.41561]
[1625730164133,0.001,32463.0,32456.0,0.31561]
[1625730164738,0.6352009,32457.0,32456.0,0.31561]
[1625730164886,0.24057544,32461.0,32456.0,0.31561]
[1625730164887,0.001,32463.0,32456.0,0.31561]
[1625730166461,0.001,32461.0,32456.0,0.31561]
[1625730166611,0.001,32461.0,32457.0,0.00362786]
[1625730166760,0.001,32461.0,32460.0,0.48115088]
[1625730167212,0.001,32461.0,32456.0,0.31198214]
[1625730167364,0.001,32461.0,32460.0,0.1]
[1625730168266,0.001,32461.0,32456.0,0.21198214]
[1625730168717,0.001,32461.0,32460.0,0.24057544]
[1625730169317,0.001,32461.0,32460.0,0.2442027]
[1625730169927,0.001,32461.0,32460.0,0.24057544]
[1625730170518,0.001,32461.0,32460.0,0.24420301]
[1625730171116,0.001,32461.0,32454.0,0.001]
[1625730171269,0.23487,32461.0,32454.0,0.001]
[1625730171418,0.23487,32461.0,32460.0,0.0315]
[1625730171569,0.23487,32461.0,32418.0,0.01814052]
[1625730172319,0.23487,32461.0,32454.0,0.001]
[1625730172771,0.72172632,32455.0,32454.0,0.001]
[1625730173974,0.72172632,32455.0,32454.0,0.00462827]
[1625730174275,0.72172632,32455.0,32454.0,0.001]
[1625730174724,0.72172632,32455.0,32454.0,0.00462828]
[1625730175327,0.72172632,32455.0,32454.0,0.00362828]
[1625730175626,0.001,32459.0,32454.0,0.00362828]
[1625730175778,0.001,32459.0,32454.0,0.24954828]
[1625730175927,0.001,32459.0,32454.0,0.24592]
[1625730176230,0.001,32459.0,32458.0,0.1]
[1625730176527,0.001,32459.0,32455.0,0.0036277]
[1625730176676,0.001,32459.0,32452.0,0.001]
[1625730176828,0.72172632,32453.0,32452.0,0.001]
[1625730177278,0.72172632,32453.0,32452.0,0.00462782]
[1625730177428,0.47592632,32453.0,32452.0,0.00462782]
[1625730177581,0.47592632,32453.0,32452.0,0.001]
[1625730177729,0.47592632,32453.0,32452.0,0.00462778]
[1625730178481,0.22952632,32453.0,32452.0,0.10462778]
[1625730178782,0.47010176,32453.0,32452.0,0.34520322]
[1625730179382,0.22952632,32453.0,32452.0,0.34520322]
[1625730182388,0.22952632,32453.0,32452.0,0.57882322]
[1625730183671,0.001,32459.0,32452.0,0.57882322]
[1625730184119,0.001,32459.0,32452.0,0.47882322]
[1625730184269,0.001,32459.0,32453.0,0.00362746]
[1625730184571,0.001,32459.0,32458.0,0.1]
[1625730184943,0.001,32459.0,32458.0,0.34057544]
[1625730185098,0.001,32459.0,32458.0,0.3442029]
[1625730186819,0.001,32459.0,32458.0,0.82535378]
[1625730187270,0.002,32462.0,32458.0,0.82535378]
[1625730187645,0.002,32462.0,32458.0,0.72535378]
[1625730187795,0.002,32462.0,32459.0,0.00362732]